Cogmind - Beta 13 @@@ ROGUE MODE // 2024.03.17 @ 17:41:05 Player: Jezoensis Result: Escaped! Performance ------------- Evolutions (9) 4500 Regions Visited (27) 5400 Robots Destroyed (261) 1305 Value Destroyed (11369) 11369 Prototype IDs (87) 1740 Alien Tech Used (2) 400 Bonus (13235) 13235 TOTAL SCORE: 37949 Bonus ------- High Alert Combat Kills 1319 Follower Combat Kills 2066 Network Hubs Disabled 800 Aligned with FarCom 300 Met Data Miner 300 Met Imprinter 300 Destroyed Z-Imprinter 1000 Triggered Deep Caves Wall 500 Exposed GOLEM Chamber 500 Met R17 at Cetus 500 Found Hidden Lab 3000 Win 3000 Friendly Fire -350 Cogmind --------- Core Integrity 1600/1600 Matter 300/300 Energy 2090/2100 System Corruption 2% Temperature Cool (3) Movement Walking (100) Location To Epsilon Eridani Parts ------- > --- POWER (2) -------- Assembled Flux Generator > --- PROPULSION (4) --- Biometal Leg Enhanced Biometal Leg Assembled Alloy Leg Assembled Alloy Leg > --- UTILITY (17) ----- Assembled Nanovents Assembled Nanovents Assembled Nanovents Assembled Biocell Array Assembled Biocell Array Assembled Suspension Frame Assembled Metafiber Network Structural Scanner Enhanced Optical Array Assembled Combat Suite Advanced Targeting Computer Advanced Transmission Jammer Assembled Alloy Armor Assembled Alloy Armor Deep Network Scanner GOLEM Unit > --- WEAPON (3) ------- Assembled Focal Cannon Assembled Focal Cannon Assembled Focal Cannon > --- INVENTORY (5) ---- Biometal Leg Long-range Tractor Beam Tesla Bomb Launcher Micro-nuke Launcher Peak State ------------ > --- POWER ------------ Assembled Flux Generator > --- PROPULSION ------- Biometal Leg Enhanced Biometal Leg Assembled Alloy Leg Assembled Alloy Leg > --- UTILITY ---------- Assembled Nanovents Assembled Nanovents Assembled Nanovents Assembled Nanovents Assembled Biocell Array Assembled Biocell Array Assembled Suspension Frame Assembled Metafiber Network Enhanced Optical Array Assembled Combat Suite Advanced Targeting Computer Assembled Alloy Armor Assembled Alloy Armor Assembled Alloy Armor Deep Network Scanner GOLEM Unit > --- WEAPON ----------- Assembled Focal Cannon Assembled Focal Cannon Assembled Focal Cannon > --- INVENTORY -------- Biometal Leg Structural Scanner Advanced Transmission Jammer Tesla Bomb Launcher Micro-nuke Launcher [Rating: 223] Favorites ----------- Power Cooled Deuterium Engine Engine Cooled Deuterium Engine Power Core Neutrino Core Reactor Assembled Flux Generator Propulsion Wheel Treads Spiked Medium Treads Leg Assembled Alloy Leg Wheel Wheel Utility Advanced Targeting Computer Device Long-range Terrain Scanner Storage High-capacity Storage Unit Processor Advanced Targeting Computer Hackware Advanced Hacking Suite Protection Improved Utility Shielding Weapon KE Penetrator Energy Gun Gatling Laser Energy Cannon Assembled Focal Cannon Ballistic Gun KE Penetrator Ballistic Cannon Antimatter Cannon Launcher Heavy Missile Launcher Special Weapon Mining Laser Impact Weapon Great Maul Slashing Weapon Vibroblade Build | -11 -10 -10 -10 -9 -8 -7 -7 -7 -7 -6 -6 -6 -6 -6 -6 -5 -5 -5 -5 -5 -5 -4 -4 -4 -3 -2 -1 ------- Run | Yrd Mat Min Exi Min Mat Fac Low Low Dat Pro Fac Low Low Zio Dee Pro Fac Ext Cet Arc Hub Fac Arm Lab Res Res Acc Slots Evolved 18 | . . . . . 4 2 . . . . 2 . . . . . 2 . . . . 2 . . 2 2 2 Power . | . . . . . . . . . . . . . . . . . . . . . . . . . . . . Propulsion 2 | . . . . . 1 . . . . . . . . . . . 1 . . . . . . . . . . Utility 15 | . . . . . 2 2 . . . . 2 . . . . . 1 . . . . 2 . . 2 2 2 Weapon 1 | . . . . . 1 . . . . . . . . . . . . . . . . . . . . . . Parts Attached 521 | 8 3 8 1 7 53 25 6 11 . 7 16 3 9 5 57 16 27 32 15 10 37 41 101 4 15 1 3 Power 21 | 1 . 2 . 1 2 1 . . . . 1 . . . . 1 1 1 . . . 3 7 . . . . Engine 11 | 1 . 2 . 1 2 1 . . . . 1 . . . . 1 1 . . . . 1 . . . . . Core 1 | . . . . . . . . . . . . . . . . . . 1 . . . . . . . . . Reactor 9 | . . . . . . . . . . . . . . . . . . . . . . 2 7 . . . . Propulsion 73 | 2 2 5 . 4 10 2 . 1 . . 1 . 1 . 5 1 3 7 2 3 . 4 12 1 7 . . Treads 32 | . 1 1 . 2 6 1 . 1 . . 1 . 1 . 2 1 . 5 1 1 . 2 6 . . . . Leg 12 | . . . . . . . . . . . . . . . 1 . . . . . . . 3 1 7 . . Wheel 29 | 2 1 4 . 2 4 1 . . . . . . . . 2 . 3 2 1 2 . 2 3 . . . . Hover . | . . . . . . . . . . . . . . . . . . . . . . . . . . . . Flight . | . . . . . . . . . . . . . . . . . . . . . . . . . . . . Utility 252 | 3 . 1 1 1 15 17 6 9 . 6 4 1 4 2 30 7 13 15 6 7 25 16 50 2 7 1 3 Device 169 | 2 . 1 . . 10 10 5 7 . 5 . . 3 1 18 6 9 12 3 6 17 10 34 1 5 1 3 Storage 6 | 1 . . 1 . 2 . . . . . . . . . . . . 1 . . . . 1 . . . . Processor 23 | . . . . 1 2 4 1 . . . 2 . . . . . 1 . . . 3 3 4 . 2 . . Hackware 9 | . . . . . . 1 . . . . . . . . . . . . . . 2 2 3 1 . . . Protection 45 | . . . . . 1 2 . 2 . 1 2 1 1 1 12 1 3 2 3 1 3 1 8 . . . . Artifact . | . . . . . . . . . . . . . . . . . . . . . . . . . . . . Weapon 175 | 2 1 . . 1 26 5 . 1 . 1 10 2 4 3 22 7 10 9 7 . 12 18 32 1 1 . . Energy Gun 39 | . . . . . 10 4 . . . 1 2 . 1 1 6 5 4 1 . . . . 4 . . . . Energy Cannon 23 | . . . . . . . . . . . 1 . . . 5 . 1 2 1 . 3 3 6 1 . . . Ballistic Gun 67 | 2 1 . . 1 9 1 . 1 . . 3 . 1 . 3 2 4 4 4 . 8 12 11 . . . . Ballistic Cannon 7 | . . . . . . . . . . . . 1 . . . . . . . . . . 6 . . . . Launcher 25 | . . . . . 3 . . . . . 1 . 1 1 8 . 1 2 2 . 1 1 3 . 1 . . Special Weapon 4 | . . . . . 4 . . . . . . . . . . . . . . . . . . . . . . Impact Weapon 6 | . . . . . . . . . . . 3 1 1 1 . . . . . . . . . . . . . Slashing Weapon 4 | . . . . . . . . . . . . . . . . . . . . . . 2 2 . . . . Piercing Weapon . | . . . . . . . . . . . . . . . . . . . . . . . . . . . . Special Melee Weapon . | . . . . . . . . . . . . . . . . . . . . . . . . . . . . Unidentified Prototypes 40 | . . . . . 4 2 1 . . . 3 . . 2 5 . . 1 4 . . . 11 4 3 . . Corrupted Parts 5 | . . . . 2 . . . . . . . . . . . . . . 2 1 . . . . . . . System Corruption 35 | . . . . 8 . . . . . . . . . . . . . . 21 6 . . . . . . . Parts Lost 56 | . . . . 1 11 2 . 1 . . . . . . 4 5 . 1 1 1 2 10 17 . . . . Power 5 | . . . . . . . . . . . . . . . . 1 . . . . . 2 2 . . . . Propulsion 19 | . . . . 1 5 . . . . . . . . . 1 1 . 1 1 . . 4 5 . . . . Utility 12 | . . . . . 3 . . . . . . . . . 2 1 . . . 1 1 1 3 . . . . Weapon 20 | . . . . . 3 2 . 1 . . . . . . 1 2 . . . . 1 3 7 . . . . Highest Loss Streak 12 | . . . . 1 8 1 . 1 . . . . . . 4 3 . 1 1 1 2 3 12 . . . . To Critical Strikes . | . . . . . . . . . . . . . . . . . . . . . . . . . . . . Average Slot Usage (%) 95 | . 100 100 100 99 97 100 100 99 100 100 99 100 100 99 99 93 95 98 93 91 93 91 90 83 89 91 91 Engine 3 | . 14 14 14 14 9 7 7 7 7 7 6 6 6 6 6 5 5 1 . . . 2 . . . . . Reactor 1 | . . . . . . . . . . . . . . . . . . . . . . . 4 4 4 4 3 Treads 6 | . 1 1 . 1 10 7 7 7 7 7 5 6 6 6 3 12 5 10 5 5 5 5 10 . . . . Leg 2 | . . . . . . . . . . . . . . . 2 . . . . . . . 1 16 18 16 15 Wheel 10 | . 26 26 28 25 16 15 15 15 15 15 13 13 13 13 12 6 15 11 11 10 11 7 1 2 . . . Device 13 | . 14 14 14 14 8 6 15 14 15 14 13 12 12 13 9 12 15 11 15 15 10 8 9 14 26 32 32 Storage 6 | . 14 14 14 14 9 7 7 7 7 7 6 6 6 6 6 6 5 5 5 5 5 5 5 5 4 4 6 Processor 21 | . . . . . 17 28 23 23 23 23 26 26 26 26 26 26 22 23 23 23 22 26 26 23 13 12 8 Hackware 3 | . . . . . . 2 . . . . . . . . . . . . . . 7 11 9 5 4 4 3 Protection 4 | . . . . . . . . . . . 6 6 6 6 9 6 6 8 5 4 3 4 3 . 4 4 7 Energy Gun 4 | . . . . . 13 11 15 15 15 15 6 5 6 6 9 7 3 2 . . . . 1 . . . . Energy Cannon 1 | . . . . . . . . . . . . . . . 1 . . . 2 . . 2 1 4 11 12 11 Ballistic Gun 9 | . 28 28 28 28 9 10 7 6 7 7 7 12 6 6 4 4 9 13 10 17 16 11 10 . . . . Naked Turns . | . . . . . . . . . . . . . . . . . . . . . . . . . . . . Heaviest Build 119 | 12 13 19 54 54 64 64 65 69 65 66 68 71 74 69 86 72 84 98 98 84 87 87 90 119 99 104 110 Greatest Support 160 | 32 32 32 20 26 70 20 20 20 20 20 20 20 20 20 22 10 36 51 80 28 28 160 155 120 138 108 138 Greatest Overweight (x) 7 | . . . 2 3 3 3 3 3 3 3 3 3 3 3 4 7 7 3 3 4 3 7 3 2 1 . 1 Average Overweight (x) 2 | . . . 1 2 1 2 3 3 3 3 3 3 3 3 3 6 1 2 2 2 2 2 . 1 . . . Largest Inventory Capacity 20 | 8 8 8 20 20 20 20 20 20 20 20 20 20 20 20 20 20 20 20 20 20 20 20 20 20 5 5 5 Average Capacity 17 | 7 8 8 17 20 19 20 20 20 20 20 20 20 20 20 20 20 20 20 20 20 20 20 20 18 5 5 5 Most Carried 20 | 6 8 8 10 11 20 20 20 20 20 20 20 20 20 20 20 20 20 20 20 20 20 20 20 20 5 5 5 Average Carried 17 | 3 7 7 9 10 16 19 19 19 20 20 19 20 20 19 19 17 19 19 19 19 19 18 18 18 4 5 4 Final Capacity 20 | 8 8 8 20 20 20 20 20 20 20 20 20 20 20 20 20 20 20 20 20 20 20 20 20 5 5 5 5 Final Carried 20 | 6 8 8 10 11 20 20 20 20 20 20 20 20 20 20 20 20 20 20 20 20 20 20 20 5 5 5 4 Class Distribution -------------------- 36% | Scavenger-Skirmisher 13% | Skirmisher 12% | Hacker-Golem 10% | Assassin 9% | Scavenger-Gunner 5% | Mutant 3% | Hacker-Skirmisher 3% | Hacker-Gunner Dominant Class ---------------- Mutant | -10/Materials Mutant | -10/Mines Mutant | -10/Exiles Mutant | -9/Mines Scavenger-Skirmisher | -8/Materials Scavenger-Skirmisher | -7/Factory Scavenger-Skirmisher | -7/Lower Caves Scavenger-Skirmisher | -7/Lower Caves Skirmisher | -7/Data Miner Skirmisher | -6/Proximity Caves Assassin | -6/Factory Scavenger-Skirmisher | -6/Lower Caves Assassin | -6/Lower Caves Assassin | -6/Zion Skirmisher | -6/Deep Caves Skirmisher | -5/Proximity Caves Scavenger-Skirmisher | -5/Factory Scavenger-Skirmisher | -5/Extension Scavenger-Gunner | -5/Cetus Scavenger-Gunner | -5/Archives Scavenger-Skirmisher | -5/Hub_04(d) Scavenger-Skirmisher | -4/Factory Hacker-Skirmisher | -4/Armory Hacker-Mutant | -4/Lab Hacker-Golem | -3/Research Hacker-Golem | -2/Research Hacker-Golem | -1/Access Resources | -11 -10 -10 -10 -9 -8 -7 -7 -7 -7 -6 -6 -6 -6 -6 -6 -5 -5 -5 -5 -5 -5 -4 -4 -4 -3 -2 -1 ----------- Run | Yrd Mat Min Exi Min Mat Fac Low Low Dat Pro Fac Low Low Zio Dee Pro Fac Ext Cet Arc Hub Fac Arm Lab Res Res Acc Matter Collected 11248 | 285 . 263 10 67 818 260 149 131 . 104 256 54 144 69 1004 258 256 943 265 465 864 1231 3031 103 158 . 60 Remotely 2912 | . . . . . . . . . . . . . 41 . 565 . . . . . 470 245 1591 . . . . Salvage Created 11822 | 24 14 278 . 60 1194 315 106 297 . 130 . . 94 . 582 549 864 694 350 310 1509 1376 2053 . 392 126 505 Parts 607 | 5 2 17 . 10 80 26 1 8 . 12 . . 4 . 21 31 37 21 18 17 72 78 88 . 29 9 21 Haulers Intercepted 4 | . . . . . 3 . 1 . . . . . . . . . . . . . . . . . . . . Recyclers Shooed 11 | . . 2 . . 1 . . . . . . . . . . . 4 . . . 1 . . . 1 . 2 Parts Field Recycled . | . . . . . . . . . . . . . . . . . . . . . . . . . . . . Retrieved Matter . | . . . . . . . . . . . . . . . . . . . . . . . . . . . . Parts Self-Destructed 68 | . . . . . . . 10 8 . 12 . . 7 . . 31 . . . . . . . . . . . Prevented . | . . . . . . . . . . . . . . . . . . . . . . . . . . . . Kills | -11 -10 -10 -10 -9 -8 -7 -7 -7 -7 -6 -6 -6 -6 -6 -6 -5 -5 -5 -5 -5 -5 -4 -4 -4 -3 -2 -1 ------- Run | Yrd Mat Min Exi Min Mat Fac Low Low Dat Pro Fac Low Low Zio Dee Pro Fac Ext Cet Arc Hub Fac Arm Lab Res Res Acc Combat Hostiles Destroyed 223 | . 1 2 . 4 23 5 . 8 . 5 . . 3 . 41 11 10 8 4 1 21 23 46 . 4 1 2 Melee 1 | . . . . . . . . . . . . . . . . . . . . . . . 1 . . . . Guns 138 | . 1 2 . 4 16 4 . 8 . 5 . . . . 2 11 7 8 . 1 19 19 31 . . . . Cannons 16 | . . . . . . . . . . . . . . . . . . . . . . . 9 . 4 1 2 AOE 57 | . . . . . 6 . . . . . . . 3 . 37 . 3 . . . . 3 5 . . . . Classes Destroyed 23 | 1 1 4 . . 6 1 . . . . . . 1 . 4 1 . . . 1 2 . 1 . . . . Worker 18 | . . 1 . . 3 4 . . . . . . . . . . . . . . 6 4 . . . . . Builder 14 | . . 1 . . 3 1 . . . . . . . . . . 1 . . . 4 2 . . . . 2 Tunneler 5 | 2 . . . . 1 1 . . . . . . . . . . 1 . . . . . . . . . . Hauler 4 | . . . . . 3 . 1 . . . . . . . . . . . . . . . . . . . . Recycler 11 | . . 2 . . . 1 . . . . . . . . . . 3 1 . . 1 . . . 1 . 2 Minesweeper 1 | . . . . . . . . . . . . . . . . 1 . . . . . . . . . . . Operator 11 | . . . . . . . . . . . . . . . . . . . . 7 1 1 1 . . 1 . Watcher 7 | . . . . . 1 . . . . . . . . . . . 1 . 1 . 2 . 1 . . . 1 Swarmer 55 | . 1 . . 4 8 3 . 3 . 4 . . 3 . . 4 4 . . . 5 8 8 . . . . Saboteur 2 | . . . . . . . . . . . . . . . . . . . . . . . 2 . . . . Grunt 49 | . . 2 . . 8 . . 4 . . . . . . . 3 3 3 . . 8 7 11 . . . . Brawler 2 | . . . . . 1 . . . . . . . . . . 1 . . . . . . . . . . . Duelist 9 | . . . . . . . . . . . . . . . . . . . . . 1 . 8 . . . . Protector 4 | . . . . . . . . . . . . . . . . . . . . . 2 . 2 . . . . Sentry 22 | . . . . . 3 1 . . . . . . . . . 1 1 3 . 1 1 4 5 . . 1 1 Specialist 4 | . . . . . 2 . . . . . . . . . . . . . . . 2 . . . . . . Hunter 9 | . . . . . 1 . . 1 . . . . . . . . 2 . . . . . 5 . . . . Programmer 20 | . . . . . . 1 . . . 1 . . . . . 2 . . . . 2 4 5 . 4 . 1 Cetus Guard 4 | . . . . . . . . . . . . . . . . . . . 4 . . . . . . . . Z-Light 3 | . . . . . . . . . . . . . . . 3 . . . . . . . . . . . . Samaritan 1 | . . . . . . . . . . . . . 1 . . . . . . . . . . . . . . Assembler 2 | . . . . . . . . . . . . . . . 2 . . . . . . . . . . . . Assembled 35 | . . . . . . . . . . . . . . . 35 . . . . . . . . . . . . Golem 2 | . . . . . . . . . . . . . . . 2 . . . . . . . . . . . . Thug 2 | . . . . . . . . . . . . . . . . . . 2 . . . . . . . . . Best Kill Streak 36 | 1 1 2 . 4 9 4 1 7 . 4 . . 3 . 36 7 5 5 3 5 10 10 6 . 2 1 4 Combat Bots Only 34 | . 1 2 . 4 7 3 . 7 . 4 . . 3 . 34 7 4 5 3 1 3 9 6 . 2 1 2 Max Kills in Single Turn 33 | 1 1 1 . 1 3 1 1 1 . 2 . . 3 . 33 1 4 1 1 1 4 2 4 . 1 1 2 Gunslinging 1 | . . . . . 1 . . . . 1 . . . . . . . . . . 1 1 1 . . . . Exploded 32 | . . . . . 2 . . . . . . . 3 . 32 . 3 . . . . 2 4 . . . . Melee 1 | . . . . . . . . . . . . . . . . . . . . . . . 1 . . . . Uniques/NPCs Destroyed 2 | . . . . . . . . . . . . . . . 1 . . . 1 . . . . . . . . Z-Imprinter (-6/Deep Caves) A7 (-5/Cetus) Combat | -11 -10 -10 -10 -9 -8 -7 -7 -7 -7 -6 -6 -6 -6 -6 -6 -5 -5 -5 -5 -5 -5 -4 -4 -4 -3 -2 -1 -------- Run | Yrd Mat Min Exi Min Mat Fac Low Low Dat Pro Fac Low Low Zio Dee Pro Fac Ext Cet Arc Hub Fac Arm Lab Res Res Acc Hostile Shots Fired 1298 | . 3 14 . 24 243 54 1 32 . 19 . . . . 76 54 35 26 25 10 66 168 417 . 21 8 2 Missed 353 | . 2 5 . 4 70 21 . 4 . 5 . . . . 23 10 11 8 11 1 16 34 116 . 8 4 . Damage Taken 17561 | . 8 97 . 177 2391 295 18 378 . 163 . . . . 1534 860 443 390 221 226 1432 2808 5690 . 247 144 39 Core 1831 | . . 22 . 22 298 54 . 78 . 14 . . . . 249 91 40 52 14 30 62 182 545 . 78 . . Absorbed by Shields 436 | . . . . . . 60 . 68 . 48 . . . . . . . 91 169 . . . . . . . . Reduced by Siege Mode 572 | . . . . . . . . . . . . . . . . . . . . . 52 168 352 . . . . Redirected to Shielding 473 | . . . . . . . . 14 . . . . . . 240 205 14 . . . . . . . . . . Ignored by Resistances 1079 | . . . . . . . . . . . . . . . 156 . . . . . . 256 581 . 51 27 8 Regen/Repaired (Parts) 1417 | . . . . . . . . . . . . . . 18 . . . . 19 46 211 536 587 . . . . Core Remaining (%) 77 | 100 . . . 82 45 . . . . 79 . . . . . 60 . . . . 80 . . 36 94 100 100 Volleys Fired 660 | 8 1 20 . 7 73 19 1 12 . 6 2 2 1 . 31 26 34 31 9 29 57 86 137 . 24 16 28 Largest 3 | 2 2 2 . 2 3 3 2 3 . 3 2 1 1 . 3 2 3 3 1 3 3 3 3 . 3 3 3 Hottest 183 | 40 40 40 . 40 160 183 160 183 . 178 88 48 43 . 153 120 98 142 81 101 160 160 163 . 75 75 75 Shots Fired 1572 | 16 2 40 . 14 183 50 2 33 . 18 3 2 1 . 64 65 76 79 11 86 137 209 357 . 51 29 44 Gun 1231 | 16 2 40 . 14 164 50 2 33 . 18 3 . . . 32 65 68 74 2 86 119 184 259 . . . . Cannon 289 | . . . . . . . . . . . . 2 . . 19 . 7 3 5 . 17 21 91 . 51 29 44 Launcher 43 | . . . . . 10 . . . . . . . 1 . 13 . 1 2 4 . 1 4 7 . . . . Special 9 | . . . . . 9 . . . . . . . . . . . . . . . . . . . . . . Kinetic 1014 | 16 2 40 . 14 85 21 . 9 . 6 1 2 . . 16 12 36 54 2 86 119 184 309 . . . . Thermal 481 | . . . . . 88 29 2 24 . 12 2 . . . 14 45 39 23 . . 17 21 41 . 51 29 44 Explosive 27 | . . . . . . . . . . . . . 1 . 13 . 1 . . . 1 4 7 . . . . Electromagnetic 38 | . . . . . 10 . . . . . . . . . 17 . . 2 9 . . . . . . . . Phasic 12 | . . . . . . . . . . . . . . . 4 8 . . . . . . . . . . . Robot Hit Streak 43 | 8 1 7 . 6 10 11 16 18 . 6 3 . 1 . 8 14 16 34 13 17 19 43 20 . 15 20 9 Robot Miss Streak 6 | 1 1 2 . 1 6 2 . 5 . 2 1 . . . 5 2 2 2 . 3 6 3 3 . 2 1 1 Penetration Max 1 | . . . . . . . . . . . . . . . . . . 1 . 1 1 1 1 . . . . Secondary Targets 25 | . . 1 . 1 5 1 . 1 . 2 . . . . . . . 2 . 1 3 6 2 . . . . Max Gunslinging Chain 1 | . . 1 . 1 1 1 . 1 . 1 . . . . . . . 1 . 1 1 1 1 . . . . Autonomous 48 | . . . . . . . . . . . . . . . . 25 23 . . . . . . . . . . Shots Hit Robots 1040 | 13 1 29 . 11 109 35 2 26 . 13 3 . 2 . 27 49 56 60 8 63 79 157 255 . 19 8 15 Core Hits 615 | 3 1 11 . 4 50 19 4 22 . 11 1 . 3 . 104 20 37 28 10 24 57 61 125 . 7 4 9 Critical Kills 14 | . . . . . . . . . . . . . . . . . . . . . 3 6 5 . . . . Critical Parts Destroyed 33 | . . . . . . . . . . . . . 1 . . . . 3 . 3 10 11 5 . . . . Critical Strikes 56 | . . . . . 3 2 . . . . . . 1 . . 1 1 5 . 3 13 17 10 . . . . Burn 9 | . . . . . 3 2 . . . . . . . . . 1 1 2 . . . . . . . . . Destroy 46 | . . . . . . . . . . . . . . . . . . 3 . 3 13 17 10 . . . . Smash 1 | . . . . . . . . . . . . . 1 . . . . . . . . . . . . . . Melee Attacks 32 | . . . . . . . . . . . 8 1 1 15 . . . . . . . . 1 4 2 . . Impact 25 | . . . . . . . . . . . 8 1 1 15 . . . . . . . . . . . . . Slashing 7 | . . . . . . . . . . . . . . . . . . . . . . . 1 4 2 . . Piercing . | . . . . . . . . . . . . . . . . . . . . . . . . . . . . Sneak Attacks 3 | . . . . . . . . . . . 1 . 1 . . . . . . . . . . . 1 . . Combat Hostiles . | . . . . . . . . . . . . . . . . . . . . . . . . . . . . Follow-up Attacks . | . . . . . . . . . . . . . . . . . . . . . . . . . . . . Damage Inflicted 35099 | 139 11 357 . 143 2629 701 70 539 . 273 108 . 283 . 3759 1448 1775 1910 598 1811 3378 4221 8689 . 1105 333 819 Guns 21898 | 139 11 357 . 143 1818 701 70 539 . 273 52 . . . 308 1448 1354 1745 25 1811 2347 3559 5198 . . . . Cannons 4797 | . . . . . . . . . . . . . . . 302 . . 69 148 . 35 36 2190 . 932 333 752 Explosions 8017 | . . . . . 811 . . . . . . . 192 . 3149 . 421 96 425 . 996 626 1301 . . . . Melee 266 | . . . . . . . . . . . 56 . 91 . . . . . . . . . . . 119 . . Ramming 121 | . . . . . . . . . . . . . . . . . . . . . . . . . 54 . 67 Kinetic 18457 | 139 11 357 . 143 891 150 . 78 . 84 . . . . 104 210 500 1336 25 1811 2347 3559 6712 . . . . Thermal 7969 | . . . . . 1310 551 70 461 . 189 52 . . . 200 1040 854 478 . . 35 36 676 . 932 333 752 Explosive 5689 | . . . . . . . . . . . . . 192 . 3149 . 421 . . . . 626 1301 . . . . Electromagnetic 2366 | . . . . . 428 . . . . . . . . . 273 . . 96 573 . 996 . . . . . . Impact 147 | . . . . . . . . . . . 56 . 91 . . . . . . . . . . . . . . Slashing 119 | . . . . . . . . . . . . . . . . . . . . . . . . . 119 . . Piercing . | . . . . . . . . . . . . . . . . . . . . . . . . . . . . Phasic 231 | . . . . . . . . . . . . . . . 33 198 . . . . . . . . . . . Highest Corruption 21 | . . . . 8 . . . . . . . . . . . 2 . . 21 21 7 . 1 1 7 . 2 Average Corruption 6 | . . . . 6 . . . . . . . . . . . 1 . . 20 14 7 . 1 1 4 . 2 Corruption Purged 27 | . . . . . . . . . . . . . . . . . . . . 20 . . . . 7 . . Corruption Blocked 44 | . . . . . . . . . . . . . . . . . . . . . 31 9 4 . . . . Effects 96 | . . . . 1 . . . . . . . . . . . 6 . . 31 13 23 . 1 7 12 . 2 Message Errors 24 | . . . . . . . . . . . . . . . . 3 . . 5 4 3 . . 3 4 . 2 Matter Fused 26 | . . . . . . . . . . . . . . . . . . . 10 3 7 . . 4 2 . . Heat Flow Errors 5 | . . . . . . . . . . . . . . . . . . . 3 1 1 . . . . . . Energy Discharges 8 | . . . . . . . . . . . . . . . . 1 . . 2 1 3 . . . 1 . . Parts Rejected 1 | . . . . . . . . . . . . . . . . . . . 1 . . . . . . . . Parts Fused 1 | . . . . . . . . . . . . . . . . . . . 1 . . . . . . . . Data Loss (minor) 7 | . . . . . . . . . . . . . . . . . . . 1 1 2 . 1 . 2 . . Data Loss (major) 10 | . . . . 1 . . . . . . . . . . . 1 . . 2 1 3 . . . 2 . . Misfires 5 | . . . . . . . . . . . . . . . . 1 . . 2 . 2 . . . . . . Alerts 1 | . . . . . . . . . . . . . . . . . . . 1 . . . . . . . . Misdirections 4 | . . . . . . . . . . . . . . . . . . . 3 1 . . . . . . . Weapon Failures 4 | . . . . . . . . . . . . . . . . . . . . 1 2 . . . 1 . . Overload Shots . | . . . . . . . . . . . . . . . . . . . . . . . . . . . . Overflow Damage 668 | . . . . . 20 . . . . . 16 . 91 . 44 . . 15 15 . 124 82 93 . 81 . 87 Projectiles 276 | . . . . . . . . . . . . . . . . . . 15 . . . . 93 . 81 . 87 Explosions 285 | . . . . . 20 . . . . . . . . . 44 . . . 15 . 124 82 . . . . . Melee 107 | . . . . . . . . . . . 16 . 91 . . . . . . . . . . . . . . Knockbacks 21 | . . . . . . . . . . . . . . . . . . . . . . . 20 . . . 1 Impact 1 | . . . . . . . . . . . . . . . . . . . . . . . . . . . 1 Kinetic 19 | . . . . . . . . . . . . . . . . . . . . . . . 19 . . . . Secondary 1 | . . . . . . . . . . . . . . . . . . . . . . . 1 . . . . Self-Inflicted Damage 550 | . . . . . . . . . . . . . . . . . . . . . 239 267 44 . . . . Shots 9 | . . . . . . . . . . . . . . . . . . . . . 4 4 1 . . . . Rammed . | . . . . . . . . . . . . . . . . . . . . . . . . . . . . Targets Rammed 7 | . . . . . . . . . . . . . . . . . . . . . . . . . 3 . 4 Kicked 7 | . . . . . . . . . . . . . . . . . . . . . . . . . 3 . 4 Crushed . | . . . . . . . . . . . . . . . . . . . . . . . . . . . . Highest Temperature 357 | . . 6 . . 355 136 24 326 . 179 . . . . 343 135 188 200 108 304 357 60 328 . . . . Average Temperature 79 | . . 6 . . 87 58 16 133 . 75 . . . . 117 47 67 81 35 76 75 18 65 . . . . Received Heat Transfer 3536 | . . 54 . . 1080 39 9 92 . . . . . . 300 135 112 113 12 . 189 369 1023 . . 9 . Effects 10 | . . . . . 5 . . . . . . . . . 3 . . . . . . . 2 . . . . Shutdowns 1 | . . . . . . . . . . . . . . . . . . . . . . . 1 . . . . Energy Bleed 2 | . . . . . . . . . . . . . . . 1 . . . . . . . 1 . . . . Interference 7 | . . . . . 5 . . . . . . . . . 2 . . . . . . . . . . . . Siege Activations 24 | . . . . . . . . . . . . . . . . . . . 1 . 4 6 13 . . . . Total Turns 473 | . . . . . . . . . . . . . . . . . . . 3 . 47 167 256 . . . . Longest Duration 63 | . . . . . . . . . . . . . . . . . . . 3 . 16 63 51 . . . . Robots Corrupted 9 | . . . . . 1 . . . . . . . . . 2 . . . 4 . 2 . . . . . . Combat Hostiles 9 | . . . . . 1 . . . . . . . . . 2 . . . 4 . 2 . . . . . . Parts Fried 29 | . . . . . 2 . . . . . . . . . . . . . 7 . 20 . . . . . . Impact Corruptions 9 | . . . . . . . . . . . 1 . 8 . . . . . . . . . . . . . . Robots Melted 1 | . . . . . . 1 . . . . . . . . . . . . . . . . . . . . . Combat Hostiles 1 | . . . . . . 1 . . . . . . . . . . . . . . . . . . . . . Parts Melted 27 | . . . . . 7 10 1 . . 1 . . . . . 1 . 1 . . . 4 1 . 1 . . Heat Transferred 11114 | . . . . . 2659 1318 150 1025 . 386 74 . . . 259 1332 1184 851 . . 37 37 777 . 425 200 400 Parts Sabotaged 8 | . . . . . . . . . . . . . . . . . . . . . . . 8 . . . . Parts Stolen . | . . . . . . . . . . . . . . . . . . . . . . . . . . . . Parts Stripped . | . . . . . . . . . . . . . . . . . . . . . . . . . . . . Power Chain Reactions 7 | . . . . . 7 . . . . . . . . . . . . . . . . . . . . . . Alert | -11 -10 -10 -10 -9 -8 -7 -7 -7 -7 -6 -6 -6 -6 -6 -6 -5 -5 -5 -5 -5 -5 -4 -4 -4 -3 -2 -1 ------- Run | Yrd Mat Min Exi Min Mat Fac Low Low Dat Pro Fac Low Low Zio Dee Pro Fac Ext Cet Arc Hub Fac Arm Lab Res Res Acc Peak Influence 1451 | 10 84 102 . 80 717 193 . . . . 92 . . . . . 230 534 835 563 1451 767 935 . 255 231 298 Initial 705 | . 6 32 . . 31 99 . . . . 75 . . . . . 15 67 298 302 196 705 309 . . 60 138 Average 276 | 2 26 65 . 76 331 96 . . . . 45 . . . . . 119 248 649 510 300 499 416 . 87 132 169 Maximum Alert Level 4 | . . . . . 3 . . . . . . . . . . . 1 2 3 2 4 3 3 . 1 1 1 Low Security (%) 49 | 100 100 100 . 100 15 100 . . . . 100 . . . . . 90 45 . . 37 3 25 . 86 85 65 Level 1 24 | . . . . . 54 . . . . . . . . . . . 9 40 5 13 43 21 37 . 13 14 34 Level 2 16 | . . . . . 24 . . . . . . . . . . . . 13 37 86 1 59 16 . . . . Level 3 9 | . . . . . 4 . . . . . . . . . . . . . 57 . 17 15 20 . . . . Level 4 . | . . . . . . . . . . . . . . . . . . . . . . . . . . . . Level 5 . | . . . . . . . . . . . . . . . . . . . . . . . . . . . . High Security . | . . . . . . . . . . . . . . . . . . . . . . . . . . . . Max Security . | . . . . . . . . . . . . . . . . . . . . . . . . . . . . Squads Dispatched 40 | . 1 1 . . 4 2 . . . . 4 . . . . . 2 1 . . 4 8 7 . 2 2 2 Investigation 3 | . . 1 . . . . . . . . 2 . . . . . . . . . . . . . . . . Extermination 13 | . . . . . . 2 . . . . 1 . . . . . . . . . 1 2 4 . 2 . 1 Reinforcement 21 | . 1 . . . 4 . . . . . 1 . . . . . 2 1 . . 3 5 1 . . 2 1 Assault 3 | . . . . . . . . . . . . . . . . . . . . . . 1 2 . . . . Garrison . | . . . . . . . . . . . . . . . . . . . . . . . . . . . . Intercept . | . . . . . . . . . . . . . . . . . . . . . . . . . . . . Searches Triggered 1 | . . . . . . . . . . . . . . . . . . . . . . . 1 . . . . Construction Impeded 2 | . . . . . . . . . . . . . . . . . . 1 . . . 1 . . . . . Haulers Reinforced . | . . . . . . . . . . . . . . . . . . . . . . . . . . . . Active Scanning Responses . | . . . . . . . . . . . . . . . . . . . . . . . . . . . . Cargo Convoy Interrupts . | . . . . . . . . . . . . . . . . . . . . . . . . . . . . Stealth | -11 -10 -10 -10 -9 -8 -7 -7 -7 -7 -6 -6 -6 -6 -6 -6 -5 -5 -5 -5 -5 -5 -4 -4 -4 -3 -2 -1 --------- Run | Yrd Mat Min Exi Min Mat Fac Low Low Dat Pro Fac Low Low Zio Dee Pro Fac Ext Cet Arc Hub Fac Arm Lab Res Res Acc Distress Signals 17 | . 1 . . . 3 . . . . . 2 . . . . . 1 . 2 . 4 . 4 . . . . Communications Jammed 82 | . . . . . . . . . . . . . . . . . . . . . . . 60 . 7 1 14 Distress Signals 82 | . . . . . . . . . . . . . . . . . . . . . . . 60 . 7 1 14 Times Spotted 400 | . 4 3 . 4 41 8 5 9 . 5 4 3 3 . 55 11 18 28 18 18 35 34 68 1 13 4 8 Peak Tracking Total 37 | . 4 2 . 4 8 3 5 7 . 4 2 3 3 . 37 4 4 7 5 2 8 7 8 1 2 2 2 Tactical Retreats 20 | . 1 . . . 2 . . 1 . . . . . . 1 . 2 1 1 . 5 2 4 . . . . Traps | -11 -10 -10 -10 -9 -8 -7 -7 -7 -7 -6 -6 -6 -6 -6 -6 -5 -5 -5 -5 -5 -5 -4 -4 -4 -3 -2 -1 ------- Run | Yrd Mat Min Exi Min Mat Fac Low Low Dat Pro Fac Low Low Zio Dee Pro Fac Ext Cet Arc Hub Fac Arm Lab Res Res Acc Traps Triggered 9 | . . . . . . . . . . . 1 . . . . . . 2 . . 1 1 3 . 1 . . Indirectly 1 | . . . . . . . . . . . . . . . . . . 1 . . . . . . . . . Trap Hack Attempts . | . . . . . . . . . . . . . . . . . . . . . . . . . . . . Triggered . | . . . . . . . . . . . . . . . . . . . . . . . . . . . . Disarmed . | . . . . . . . . . . . . . . . . . . . . . . . . . . . . Reprogrammed . | . . . . . . . . . . . . . . . . . . . . . . . . . . . . Reused . | . . . . . . . . . . . . . . . . . . . . . . . . . . . . Traps Extracted . | . . . . . . . . . . . . . . . . . . . . . . . . . . . . Installed . | . . . . . . . . . . . . . . . . . . . . . . . . . . . . Triggered 2 | . . . . . . . . . . . . 1 1 . . . . . . . . . . . . . . Most Traps Carried 1 | . . . . . . . . . . . . . . . . 1 1 . . . . . . . . . . Machines | -11 -10 -10 -10 -9 -8 -7 -7 -7 -7 -6 -6 -6 -6 -6 -6 -5 -5 -5 -5 -5 -5 -4 -4 -4 -3 -2 -1 ---------- Run | Yrd Mat Min Exi Min Mat Fac Low Low Dat Pro Fac Low Low Zio Dee Pro Fac Ext Cet Arc Hub Fac Arm Lab Res Res Acc Machines Disabled 70 | . . . . . 6 . . . . . . . . . 2 . . 1 2 3 35 8 9 1 1 1 1 Max in Single Turn 15 | . . . . . 2 . . . . . . . . . . . . 1 . 1 15 2 3 1 1 1 1 Garrison Access 1 | . . . . . . . . . . . . . . . . . . . . . . . . . 1 . . Network Hub 4 | . . . . . . . . . . . . . . . . . . . . . 4 . . . . . . Energy Cycler 1 | . . . . . . . . . . . . . . . . . . . . . . . . . . . 1 Machines Repaired . | . . . . . . . . . . . . . . . . . . . . . . . . . . . . Machines Dismantled . | . . . . . . . . . . . . . . . . . . . . . . . . . . . . Machines Sabotaged . | . . . . . . . . . . . . . . . . . . . . . . . . . . . . Overloaded Fab Kills . | . . . . . . . . . . . . . . . . . . . . . . . . . . . . Hacking | -11 -10 -10 -10 -9 -8 -7 -7 -7 -7 -6 -6 -6 -6 -6 -6 -5 -5 -5 -5 -5 -5 -4 -4 -4 -3 -2 -1 --------- Run | Yrd Mat Min Exi Min Mat Fac Low Low Dat Pro Fac Low Low Zio Dee Pro Fac Ext Cet Arc Hub Fac Arm Lab Res Res Acc Machines Accessed 71 | . 5 1 1 1 5 4 2 1 3 . 2 . 1 . . . 2 1 . . 7 6 9 1 10 3 6 Terminals 48 | . 5 . . . 5 3 . . . . 2 . . . . . 2 1 . . 7 5 5 . 5 2 6 Fabricators 8 | . . . . . . . . . . . . . . . . . . . . . . 1 4 . 3 . . Repair Stations . | . . . . . . . . . . . . . . . . . . . . . . . . . . . . Recycling Units 2 | . . . . . . 1 . . . . . . . . . . . . . . . . . . 1 . . Scanalyzers . | . . . . . . . . . . . . . . . . . . . . . . . . . . . . Garrison Access 2 | . . . . . . . . . . . . . . . . . . . . . . . . . 1 1 . Total Hacks 286 | . 19 1 1 1 16 11 12 1 24 . 6 . 1 . . . 3 2 . . 21 49 47 1 28 8 34 Successful 168 | . 10 1 1 1 8 7 12 1 24 . 1 . 1 . . . 1 . . . 9 29 26 1 16 3 16 Failed 116 | . 8 . . . 7 4 . . . . 5 . . . . . 2 2 . . 12 20 21 . 12 5 18 Catastrophic 9 | . 1 . . . . . . . . . . . . . . . 2 . . . 2 3 . . . . 1 Database Lockouts 2 | . 1 . . . 1 . . . . . . . . . . . . . . . . . . . . . . Manual 162 | . 17 . 1 . 15 10 . . . . . . . . . . 3 2 1 . 19 31 29 . 15 4 15 Terminals 200 | . 19 . . . 16 10 . . . . 6 . . . . . 3 2 . . 21 39 29 . 16 5 34 Fabricators 36 | . . . . . . . . . . . . . . . . . . . . . . 10 18 . 8 . . Repair Stations . | . . . . . . . . . . . . . . . . . . . . . . . . . . . . Recycling Units 2 | . . . . . . 1 . . . . . . . . . . . . . . . . . . 1 . . Scanalyzers . | . . . . . . . . . . . . . . . . . . . . . . . . . . . . Garrison Access 6 | . . . . . . . . . . . . . . . . . . . . . . . . . 3 3 . Terminal Hacks 107 | . 4 1 1 1 5 3 12 1 24 . 1 . 1 . . . 1 . . . 6 19 10 1 5 2 9 Record 18 | . . . . . . . 11 . 6 . . . . . . . . . . . . . . 1 . . . Part Schematic 11 | . . . . . . . . . 9 . . . . . . . . . . . . 1 1 . . . . Robot Schematic 6 | . . . . . . . . . 6 . . . . . . . . . . . . . . . . . . Robot Analysis 7 | . 2 . . . 2 1 . . . . . . . . . . . . . . . 2 . . . . . Prototype ID Bank 5 | . . . . . . . . . 3 . . . . . . . . . . . . . . . 1 . 1 Open Door 5 | . . 1 . 1 . . 1 1 . . . . 1 . . . . . . . . . . . . . . Level Access Points 2 | . . . . . . . . . . . . . . . . . . . . . . . . . 1 . 1 Branch Access Points 4 | . . . . . . 1 . . . . . . . . . . . . . . . 1 . . 1 1 . Emergency Access Points 1 | . . . . . . . . . . . . . . . . . . . . . . 1 . . . . . Terminal Index 7 | . 1 . . . . 1 . . . . . . . . . . . . . . 1 1 1 . . 1 1 Fabricator Index 1 | . . . . . . . . . . . . . . . . . . . . . . . . . 1 . . Garrison Index 1 | . . . . . . . . . . . . . . . . . . . . . . 1 . . . . . Alert Level 3 | . . . . . . . . . . . . . . . . . . . . . . 2 1 . . . . Unreport Threat 18 | . . . . . 2 . . . . . . . . . . . 1 . . . 4 5 4 . . . 2 Locate Traps 8 | . 1 . . . 1 . . . . . . . . . . . . . . . . 2 2 . 1 . 1 Recall Extermination 3 | . . . . . . . . . . . . . . . . . . . . . . 1 1 . . . 1 Recall Reinforcements 1 | . . . . . . . . . . . . . . . . . . . . . 1 . . . . . . Recall Assault 1 | . . . . . . . . . . . . . . . . . . . . . . 1 . . . . . Hauler Manifests 2 | . . . . . . . . . . . 1 . . . . . . . . . . . . . . . 1 Registered Components 1 | . . . . . . . . . . . . . . . . . . . . . . . . . . . 1 Zone Layout 1 | . . . . . . . . . . . . . . . . . . . . . . 1 . . . . . Derelict Proto ID Bank 1 | . . . 1 . . . . . . . . . . . . . . . . . . . . . . . . Fabricator Hacks 10 | . . . . . . . . . . . . . . . . . . . . . . 3 6 . 1 . . Network Status 4 | . . . . . . . . . . . . . . . . . . . . . . 2 1 . 1 . . Load Schematic 2 | . . . . . . . . . . . . . . . . . . . . . . . 2 . . . . Build 4 | . . . . . . . . . . . . . . . . . . . . . . 1 3 . . . . Repair Station Hacks . | . . . . . . . . . . . . . . . . . . . . . . . . . . . . Recycling Unit Hacks . | . . . . . . . . . . . . . . . . . . . . . . . . . . . . Scanalyzer . | . . . . . . . . . . . . . . . . . . . . . . . . . . . . Garrison Access Hacks 1 | . . . . . . . . . . . . . . . . . . . . . . . . . 1 . . Seal Access 1 | . . . . . . . . . . . . . . . . . . . . . . . . . 1 . . Unauthorized Hacks 50 | . 6 . . . 3 4 . . . . . . . . . . . . . . 3 7 10 . 9 1 7 Terminals 37 | . 6 . . . 3 3 . . . . . . . . . . . . . . 3 6 4 . 4 1 7 Track 11 | . 3 . . . 1 . . . . . . . . . . . . . . . 1 2 1 . 1 . 2 Assimilate 3 | . . . . . . 1 . . . . . . . . . . . . . . 1 1 . . . . . Botnet 17 | . 2 . . . 2 1 . . . . . . . . . . . . . . 1 2 2 . 2 1 4 Operators 6 | . 1 . . . . 1 . . . . . . . . . . . . . . . 1 1 . 1 . 1 Fabricators 11 | . . . . . . . . . . . . . . . . . . . . . . 1 6 . 4 . . Prioritize 1 | . . . . . . . . . . . . . . . . . . . . . . . 1 . . . . Fabnet 8 | . . . . . . . . . . . . . . . . . . . . . . 1 4 . 3 . . Haulers 2 | . . . . . . . . . . . . . . . . . . . . . . . 1 . 1 . . Repair Stations . | . . . . . . . . . . . . . . . . . . . . . . . . . . . . Recycling Units 2 | . . . . . . 1 . . . . . . . . . . . . . . . . . . 1 . . Recyclers 2 | . . . . . . 1 . . . . . . . . . . . . . . . . . . 1 . . Scanalyzers . | . . . . . . . . . . . . . . . . . . . . . . . . . . . . Garrison Access . | . . . . . . . . . . . . . . . . . . . . . . . . . . . . Data Cores Recovered 1 | . . . . . . . . . . . . . . . . . . . . . . . 1 . . . . Used . | . . . . . . . . . . . . . . . . . . . . . . . . . . . . Hacking Detections 44 | . 5 . . . 5 3 . . . . 2 . . . . . 2 1 1 . 7 5 4 . 3 2 4 Full Trace Events 2 | . 1 . . . . . . . . . 1 . . . . . . . . . . . . . . . . Feedback Events . | . . . . . . . . . . . . . . . . . . . . . . . . . . . . Feedback Blocked . | . . . . . . . . . . . . . . . . . . . . . . . . . . . . Robot Schematics Acquired 6 | . . . . . . . . . 6 . . . . . . . . . . . . . . . . . . Robots Built 4 | . . . . . . . . . . . . . . . . . . . . . . . 4 . . . . Authchips 1 | . . . . . . . . . . . . . . . . . . . . . . . 1 . . . . Time 245 | . . . . . . . . . . . . . . . . . . . . . . . 245 . . . . Total Robot Build Rating 22 | . . . . . . . . . . . . . . . . . . . . . . . 22 . . . . Part Schematics Acquired 11 | . . . . . . . . . 9 . . . . . . . . . . . . 1 1 . . . . Parts Built 2 | . . . . . . . . . . . . . . . . . . . . . . 1 1 . . . . Authchips 1 | . . . . . . . . . . . . . . . . . . . . . . . 1 . . . . Time 127 | . . . . . . . . . . . . . . . . . . . . . . 69 58 . . . . Total Part Build Rating 16 | . . . . . . . . . . . . . . . . . . . . . . 9 7 . . . . Parts Repaired . | . . . . . . . . . . . . . . . . . . . . . . . . . . . . Time . | . . . . . . . . . . . . . . . . . . . . . . . . . . . . Parts Recycled . | . . . . . . . . . . . . . . . . . . . . . . . . . . . . Recycled Matter . | . . . . . . . . . . . . . . . . . . . . . . . . . . . . Retrieved Matter . | . . . . . . . . . . . . . . . . . . . . . . . . . . . . Retrieved Components . | . . . . . . . . . . . . . . . . . . . . . . . . . . . . Parts Scanalyzed . | . . . . . . . . . . . . . . . . . . . . . . . . . . . . Part Schematics Acquired . | . . . . . . . . . . . . . . . . . . . . . . . . . . . . Parts Damaged . | . . . . . . . . . . . . . . . . . . . . . . . . . . . . Bothacking | -11 -10 -10 -10 -9 -8 -7 -7 -7 -7 -6 -6 -6 -6 -6 -6 -5 -5 -5 -5 -5 -5 -4 -4 -4 -3 -2 -1 ------------ Run | Yrd Mat Min Exi Min Mat Fac Low Low Dat Pro Fac Low Low Zio Dee Pro Fac Ext Cet Arc Hub Fac Arm Lab Res Res Acc Used RIF Installer . | . . . . . . . . . . . . . . . . . . . . . . . . . . . . Robots Hacked 1 | . . . . . . . . . . . . . . . . . . . . . . . . . 1 . . Non-combat . | . . . . . . . . . . . . . . . . . . . . . . . . . . . . Combat 1 | . . . . . . . . . . . . . . . . . . . . . . . . . 1 . . Robot Hacks Applied . | . . . . . . . . . . . . . . . . . . . . . . . . . . . . Relay Couplers Released . | . . . . . . . . . . . . . . . . . . . . . . . . . . . . Fabnet Peak Effective % 13 | . . . . . . . . . . . . . . . . . . . . . . . . . 12 13 3 Autooverrided 1 | . . . . . . . . . . . . . . . . . . . . . . . . . 1 . . Robots Rewired . | . . . . . . . . . . . . . . . . . . . . . . . . . . . . Allies Hacked . | . . . . . . . . . . . . . . . . . . . . . . . . . . . . Hacks Repelled . | . . . . . . . . . . . . . . . . . . . . . . . . . . . . Allies | -11 -10 -10 -10 -9 -8 -7 -7 -7 -7 -6 -6 -6 -6 -6 -6 -5 -5 -5 -5 -5 -5 -4 -4 -4 -3 -2 -1 -------- Run | Yrd Mat Min Exi Min Mat Fac Low Low Dat Pro Fac Low Low Zio Dee Pro Fac Ext Cet Arc Hub Fac Arm Lab Res Res Acc Total Allies 21 | . . . . . . 1 2 . . . . . . . 1 . . 7 4 . 1 . 4 . 1 . . Largest Group 6 | . . . . . . 1 2 . . . . . . . 1 . . 6 5 2 2 . 4 . 1 . . Highest-Rated Group 471 | . . . . . . 10 62 . . . . . . . 119 . . 316 471 192 185 . 180 . 82 . . Highest-Rated Ally 159 | . . . . . . 10 31 . . . . . . . 119 . . 159 159 96 96 . 49 . 82 . . Total Orders 8 | . . . . . . 2 . . . . . . . . . . . . 4 . 2 . . . . . . STAY 5 | . . . . . . 1 . . . . . . . . . . . . 2 . 2 . . . . . . FOLLOW 3 | . . . . . . 1 . . . . . . . . . . . . 2 . . . . . . . . Ally Attacks 338 | . . . . . . . 6 . . . . . . . 58 . . 143 91 16 2 . 19 . 3 . . Total Damage 10073 | . . . . . . . 124 . . . . . . . 2693 . . 3059 2617 942 45 . 457 . 136 . . Kills 71 | . . . . . . . . . . . . . . . 18 . . 23 21 5 1 . 2 . 1 . . Allies Corrupted . | . . . . . . . . . . . . . . . . . . . . . . . . . . . . Allies Melted 1 | . . . . . . . . . . . . . . . . . . . 1 . . . . . . . . Intel | -11 -10 -10 -10 -9 -8 -7 -7 -7 -7 -6 -6 -6 -6 -6 -6 -5 -5 -5 -5 -5 -5 -4 -4 -4 -3 -2 -1 ------- Run | Yrd Mat Min Exi Min Mat Fac Low Low Dat Pro Fac Low Low Zio Dee Pro Fac Ext Cet Arc Hub Fac Arm Lab Res Res Acc Robot Analysis Total 7 | . 2 . . . 2 1 . . . . . . . . . . . . . . . 2 . . . . . Derelict Logs Recovered 13 | . . 1 . 2 . . 1 2 . . . 1 2 2 . 2 . . . . . . . . . . . Drone Launches . | . . . . . . . . . . . . . . . . . . . . . . . . . . . . Drone Recoveries . | . . . . . . . . . . . . . . . . . . . . . . . . . . . . Exploration | -11 -10 -10 -10 -9 -8 -7 -7 -7 -7 -6 -6 -6 -6 -6 -6 -5 -5 -5 -5 -5 -5 -4 -4 -4 -3 -2 -1 ------------- Run | Yrd Mat Min Exi Min Mat Fac Low Low Dat Pro Fac Low Low Zio Dee Pro Fac Ext Cet Arc Hub Fac Arm Lab Res Res Acc Turns Passed 16811 | 88 111 265 254 248 1035 789 376 510 92 237 791 256 322 694 902 610 709 1120 599 299 830 1175 1902 839 861 303 594 Spaces Moved 10316 | 59 103 235 249 180 601 572 280 344 74 165 580 196 232 511 525 296 532 705 380 163 471 584 834 199 585 201 460 Core 21 | 21 . . . . . . . . . . . . . . . . . . . . . . . . . . . Treads 802 | . . . . . 12 . . . . . . . . . . . . . 18 . . 70 702 . . . . Legs 1260 | . . . . . . . . . . . . . . . . . . . . . . . . 14 585 201 460 Wheels 8233 | 38 103 235 249 180 589 572 280 344 74 165 580 196 232 511 525 296 532 705 362 163 471 514 132 185 . . . Hover . | . . . . . . . . . . . . . . . . . . . . . . . . . . . . Flight . | . . . . . . . . . . . . . . . . . . . . . . . . . . . . Fastest Speed 50 | 50 100 80 80 120 95 110 125 125 125 125 125 125 125 125 115 170 101 116 125 125 125 125 120 107 116 120 100 Average Speed 124 | 82 100 80 100 120 113 116 125 125 125 125 125 125 125 125 128 172 108 130 133 125 125 139 147 117 125 120 109 Slowest Speed 185 | 100 100 100 110 145 158 125 125 125 125 125 125 125 125 125 140 185 185 135 160 160 140 185 155 182 179 120 176 Overloaded Moves . | . . . . . . . . . . . . . . . . . . . . . . . . . . . . Propulsion Burnouts . | . . . . . . . . . . . . . . . . . . . . . . . . . . . . Robots Hopped . | . . . . . . . . . . . . . . . . . . . . . . . . . . . . Cave-ins Triggered . | . . . . . . . . . . . . . . . . . . . . . . . . . . . . Exploration Rate (%) 50 | 4 30 64 66 53 55 24 66 41 71 45 21 43 51 82 86 64 15 72 67 99 63 20 58 95 27 7 20 Regions Visited 27 Branch Regions 18 Pre-discovered Areas 4 | . . . . . . . 2 . 1 . . . . 1 . . . . . . . . . . . . . Known Exits Taken 15 | . . . . . . 1 1 1 1 1 1 1 1 1 1 1 1 . . . 1 1 . . 1 . . Unknown Exits Taken 12 | 1 1 1 1 1 1 . . . . . . . . . . . . 1 1 1 . . 1 1 . 1 . Scrap Searched 14 | . . 2 . 1 . . 1 2 . 1 . 1 2 2 . 2 . . . . . . . . . . . Spaces Dug 725 | . . . . . 7 . . . . . 7 1 . 2 53 . 4 . . . 590 12 8 . 15 13 13 Terrain Destroyed 1173 | . . . . . 33 . . . . . 7 2 11 2 76 8 30 2 . 10 634 135 135 . 30 17 41 Melee 12 | . . . . . . . . . . . 7 1 . 2 . . . . . . . . 1 . 1 . . Projectile 239 | . . . . . 9 . . . . . . 1 . . 5 8 7 2 . 10 49 38 42 . 29 17 22 AOE 917 | . . . . . 24 . . . . . . . 11 . 71 . 23 . . . 585 96 88 . . . 19 Terrain Rammed . | . . . . . . . . . . . . . . . . . . . . . . . . . . . . Walls Destroyed . | . . . . . . . . . . . . . . . . . . . . . . . . . . . . Machines Disabled . | . . . . . . . . . . . . . . . . . . . . . . . . . . . . Actions | -11 -10 -10 -10 -9 -8 -7 -7 -7 -7 -6 -6 -6 -6 -6 -6 -5 -5 -5 -5 -5 -5 -4 -4 -4 -3 -2 -1 --------- Run | Yrd Mat Min Exi Min Mat Fac Low Low Dat Pro Fac Low Low Zio Dee Pro Fac Ext Cet Arc Hub Fac Arm Lab Res Res Acc Total 12936 | 81 109 272 252 195 788 651 305 391 73 180 630 201 262 537 676 355 617 860 471 210 619 767 1205 812 666 238 513 Wait 945 | . . . . . 10 1 9 21 . . 1 . 12 . 29 8 5 57 50 1 40 30 61 569 11 19 11 Move 10288 | 58 102 234 248 179 600 571 279 343 73 164 579 195 231 510 524 295 531 704 379 162 470 583 833 198 584 200 459 Hop . | . . . . . . . . . . . . . . . . . . . . . . . . . . . . Pick Up 183 | 6 2 2 2 2 28 18 4 2 . 1 9 . 3 1 12 7 4 9 5 2 5 13 35 2 7 . 2 Fast Attach 129 | 7 . 2 . 2 12 3 2 . . 1 7 . 1 4 7 . 11 8 6 7 7 9 21 4 7 1 . Attach 88 | 1 . . . 1 14 4 . 1 . . 3 . . . 8 7 3 1 4 2 . 11 26 1 1 . . Detach 67 | 1 . 1 . . 7 1 1 . . . 2 . . 1 3 1 6 1 4 1 2 3 12 9 7 1 3 Swap 307 | . 3 6 1 4 27 19 4 10 . 6 6 3 8 1 42 9 13 23 5 1 30 21 54 1 7 . 3 Drop 222 | . 1 7 1 . 17 15 5 2 . 2 13 . 5 5 20 2 10 22 9 5 8 7 25 24 13 1 3 Fire 660 | 8 1 20 . 7 73 19 1 12 . 6 2 2 1 . 31 26 34 31 9 29 57 86 137 . 24 16 28 Melee 32 | . . . . . . . . . . . 8 1 1 15 . . . . . . . . 1 4 2 . . Ram . | . . . . . . . . . . . . . . . . . . . . . . . . . . . . Kick 7 | . . . . . . . . . . . . . . . . . . . . . . . . . 3 . 4 Crush . | . . . . . . . . . . . . . . . . . . . . . . . . . . . . Escape Stasis 8 | . . . . . . . . . . . . . . . . . . 4 . . . 4 . . . . . Rewire . | . . . . . . . . . . . . . . . . . . . . . . . . . . . . Trap . | . . . . . . . . . . . . . . . . . . . . . . . . . . . . Miscellaneous . | . . . . . . . . . . . . . . . . . . . . . . . . . . . . Route ------- -11/Scrapyard -10/Materials -10/Mines (discovered 4 exits: [*Mat x2] / *Exi / [Sub]) -10/Exiles -9/Mines -8/Materials -7/Factory (discovered 5 exits: *Fac x3 / *Low x2) -7/Lower Caves -7/Lower Caves -7/Data Miner -6/Proximity Caves -6/Factory (discovered 2 exits: *Low x2) -6/Lower Caves -6/Lower Caves (discovered 2 exits: Fac / *Zio) -6/Zion -6/Deep Caves -5/Proximity Caves -5/Factory (discovered 4 exits: Fac / *Upp x2 / *Ext) -5/Extension (discovered 3 exits: *Fac x2 / *Cet) -5/Cetus (discovered 2 exits: *Fac / [*Arc]) -5/Archives (discovered 3 exits: *Fac / *Hub x2) -5/Hub_04(d) (discovered 4 exits: *Fac x4) -4/Factory (discovered 3 exits: Upp x2 / *Arm) -4/Armory (discovered 3 exits: Res x2 / *Lab) -4/Lab -3/Research (discovered 5 exits: *Res x3 / Qua x2) -2/Research (discovered 3 exits: *Acc / Tes x2) -1/Access To Epsilon Eridani History --------- Turn | Location | Event 22 | -11/Scrapyard | Discovered new exit (range 16) 89 | -11/Scrapyard | Entered Materials 161 | -10/Materials | Central database locked down 183 | -10/Materials | Discovered new exit (range 12) 200 | -10/Materials | Entered Mines 230 | -10/Mines | Discovered new exit (range 10) 309 | -10/Mines | Discovered new exit (range 10) 309 | -10/Mines | Discovered new exit (range 12) 328 | -10/Mines | Build established: Mutant 341 | -10/Mines | Met a Derelict shopkeep closing up shop 462 | -10/Mines | Deemed a non-threat by the Exiles lab entrance 462 | -10/Mines | Discovered new exit (range 5) 465 | -10/Mines | Entered Exiles 486 | -10/Exiles | Met 8R-AWN 498 | -10/Exiles | Met EX-HEX 571 | -10/Exiles | Met EX-BIN 583 | -10/Exiles | Aligned with FarCom system 584 | -10/Exiles | Given EX-Vault access code 609 | -10/Exiles | Opened EX-Vault 615 | -10/Exiles | Found Modified TNC 638 | -10/Exiles | Warned to stay clear of 0b10 Research branches 670 | -10/Exiles | Met EX-DEC 710 | -10/Exiles | Discovered new exit (range 10) 719 | -10/Exiles | Left Exiles lab with Modified TNC 719 | -10/Exiles | Entered Mines 798 | -9/Mines | Met a Derelict who couldn't figure out how to use a Trap Extractor 870 | -9/Mines | Learned Materials trap positions 900 | -9/Mines | Learned Materials machine intel 955 | -9/Mines | Discovered new exit (range 5) 967 | -9/Mines | Entered Materials 967 | -8/Materials | Evolved 4 slots: Propulsion x1, Utility x2, Weapon x1 968 | -8/Materials | Loaded intel: 8 trap records 969 | -8/Materials | Loaded intel: 55 machine locations 1263 | -8/Materials | Destroyed 7 combat bots 1282 | -8/Materials | Core integrity fell below 50% 1294 | -8/Materials | Build established: Skirmisher 1337 | -8/Materials | Destroyed 7 combat bots 1345 | -8/Materials | Lost 8 parts (4n2u2w) 1616 | -8/Materials | Central database locked down 1712 | -8/Materials | Build established: Scavenger-Skirmisher 1713 | -8/Materials | Discovered new exit (range 19) 2002 | -8/Materials | Entered Factory 2002 | -7/Factory | Evolved 2 slots: Utility x2 2083 | -7/Factory | Discovered new exit (range 10) 2286 | -7/Factory | Identified exit to Lower Caves 2351 | -7/Factory | Discovered new exit (range 15) 2694 | -7/Factory | Discovered new exit (range 4) 2791 | -7/Factory | Entered Lower Caves 2937 | -7/Lower Caves | Learned 8 Factory zone layouts 2968 | -7/Lower Caves | A Commander dispatched an escort 2979 | -7/Lower Caves | Learned Extension trap positions 2979 | -7/Lower Caves | Learned location of Armory (-4) 2979 | -7/Lower Caves | Learned Research emergency access door positions 2979 | -7/Lower Caves | Learned Research stockpile data 2979 | -7/Lower Caves | Learned Research terminal intel 2979 | -7/Lower Caves | Learned Armory garrison access intel 2979 | -7/Lower Caves | Learned location of Extension (-5) 3162 | -7/Lower Caves | Discovered new exit (range 5) 3163 | -7/Lower Caves | Encountered a Warlord checkpoint 3165 | -7/Lower Caves | Identified exit to Lower Caves 3167 | -7/Lower Caves | Entered another Lower Caves area 3231 | -7/Lower Caves | Destroyed 7 combat bots 3268 | -7/Lower Caves | Learned location of 1 exit from Factory 3605 | -7/Lower Caves | Discovered new exit (range 5) 3632 | -7/Lower Caves | Learned Factory emergency access door positions 3648 | -7/Lower Caves | Identified exit to Data Miner 3677 | -7/Lower Caves | Entered Data Miner 3677 | -7/Data Miner | Discovered new exit (range 7) 3696 | -7/Data Miner | Met Data Miner 3722 | -7/Data Miner | Learned location of Section 7 (-3) 3722 | -7/Data Miner | Acquired the access code to Warlord's prototype stash 3740 | -7/Data Miner | Received God Mode back door access code from Data Miner 3767 | -7/Data Miner | Identified exit to Proximity Caves 3769 | -7/Data Miner | Entered Proximity Caves 3831 | -6/Proximity Caves | Spotted B-75 Beast 3975 | -6/Proximity Caves | Build established: Skirmisher 4001 | -6/Proximity Caves | Discovered new exit (range 4) 4005 | -6/Proximity Caves | Identified exit to Factory 4006 | -6/Proximity Caves | Entered Factory 4006 | -6/Factory | Evolved 2 slots: Utility x2 4007 | -6/Factory | Identified exit to Lower Caves 4130 | -6/Factory | Discovered exit to Lower Caves (range 23) 4575 | -6/Factory | Build established: Assassin 4717 | -6/Factory | Found Prototype Launcher 4717 | -6/Factory | Identified Scatter Rocket Array 4797 | -6/Factory | Entered Lower Caves 4941 | -6/Lower Caves | Identified exit to Lower Caves 5043 | -6/Lower Caves | Attracted the attention of an 0b10 checkpoint 5053 | -6/Lower Caves | Entered another Lower Caves area 5066 | -6/Lower Caves | Discovered new exit (range 22) 5105 | -6/Lower Caves | Encountered a Warlord checkpoint 5301 | -6/Lower Caves | Learned 4 Factory zone layouts 5327 | -6/Lower Caves | Discovered new exit (range 23) 5374 | -6/Lower Caves | Identified exit to Zion 5375 | -6/Lower Caves | Entered Zion 5414 | -6/Zion | Found Prototype Launcher 5414 | -6/Zion | Identified Rocket Array 5705 | -6/Zion | Rebuked by Imprinter 5744 | -6/Zion | Given the Hacking Drone Bay 5745 | -6/Zion | Found Prototype Device 5745 | -6/Zion | Identified Hacking Drone Bay 5852 | -6/Zion | Learned location of 1 exit from Lower Caves 5950 | -6/Zion | Discovered new exit (range 22) 6064 | -6/Zion | Saw the warning signs outside the Deep Caves entrance 6067 | -6/Zion | Identified exit to Deep Caves 6069 | -6/Zion | Entered Deep Caves 6071 | -6/Deep Caves | Met 5H-AD0 6157 | -6/Deep Caves | Z-Facility disabled 6203 | -6/Deep Caves | Attacked by Z-Imprinter 6209 | -6/Deep Caves | Destroyed Z-Imprinter 6242 | -6/Deep Caves | Found Prototype Protection 6242 | -6/Deep Caves | Identified Zio. Weapon Casing 6358 | -6/Deep Caves | Found Prototype Protection 6358 | -6/Deep Caves | Identified Zio. Heavy Carapace 6390 | -6/Deep Caves | Found Zio. Weapon Casing 6411 | -6/Deep Caves | Found Zio. Heavy Carapace 6435 | -6/Deep Caves | Found Zio. Weapon Casing 6592 | -6/Deep Caves | Discovered new exit (range 6) 6597 | -6/Deep Caves | Identified exit to Proximity Caves 6737 | -6/Deep Caves | Spotted AG-11958 6766 | -6/Deep Caves | Destroyed AG-11958 6794 | -6/Deep Caves | Triggered Deep Caves wall 6794 | -6/Deep Caves | Spotted AS-91537 6794 | -6/Deep Caves | Spotted AS-93597 6794 | -6/Deep Caves | Destroyed AS-93597 6802 | -6/Deep Caves | Destroyed AS-91537 6802 | -6/Deep Caves | Spotted AG-19464 6803 | -6/Deep Caves | Exposed GOLEM chamber 6823 | -6/Deep Caves | Destroyed 34 combat bots 6833 | -6/Deep Caves | Destroyed AG-19464 6849 | -6/Deep Caves | Found GOLEM Unit 6851 | -6/Deep Caves | Found GOLEM Unit 6857 | -6/Deep Caves | Lost 4 parts (1n2u1w) 6857 | -6/Deep Caves | Found GOLEM Unit 6862 | -6/Deep Caves | Found GOLEM Unit 6878 | -6/Deep Caves | Found AWS/Thermal 6971 | -6/Deep Caves | Entered Proximity Caves 7125 | -5/Proximity Caves | Lost 3 parts (1p2w) 7128 | -5/Proximity Caves | Attracted the attention of an 0b10 checkpoint 7129 | -5/Proximity Caves | Build established: Skirmisher 7152 | -5/Proximity Caves | Destroyed 7 combat bots 7237 | -5/Proximity Caves | Encountered a Derelict sapper outpost 7293 | -5/Proximity Caves | Learned location of 2 exits from Factory 7415 | -5/Proximity Caves | Learned Factory trap positions 7561 | -5/Proximity Caves | Discovered new exit (range 13) 7580 | -5/Proximity Caves | Identified exit to Factory 7581 | -5/Proximity Caves | Entered Factory 7581 | -5/Factory | Evolved 2 slots: Propulsion x1, Utility x1 7582 | -5/Factory | Identified exit to Extension 7582 | -5/Factory | Identified exit to Factory 7584 | -5/Factory | Loaded intel: 79 trap records 7823 | -5/Factory | Discovered new exit (range 23) 7930 | -5/Factory | Build established: Scavenger-Skirmisher 8118 | -5/Factory | Discovered new exit (range 20) 8176 | -5/Factory | Identified exit to Upper Caves 8290 | -5/Factory | Entered Extension 8291 | -5/Extension | Loaded intel: 16 trap records 8415 | -5/Extension | Disrupted transfer network 8511 | -5/Extension | Rescued a captive Derelict 8524 | -5/Extension | Rescued a captive Derelict 8592 | -5/Extension | Rescued A7 8688 | -5/Extension | Rescued a captive Derelict 8689 | -5/Extension | Rescued a captive Derelict 8741 | -5/Extension | Rescued a captive Derelict 8742 | -5/Extension | Rescued a captive Derelict 9008 | -5/Extension | Spotted B-75 Beast 9019 | -5/Extension | Spotted B-75 Beast 9020 | -5/Extension | Allies destroyed B-75 Beast 9044 | -5/Extension | Allies destroyed B-75 Beast 9092 | -5/Extension | Discovered exit to Factory (range 19) 9192 | -5/Extension | Discovered exit to Factory (range 20) 9192 | -5/Extension | Discovered new exit (range 20) 9410 | -5/Extension | Entered Cetus 9410 | -5/Cetus | Accompanied by 3 allies (A7) 9415 | -5/Cetus | Acquired a Cetus Manufacturing Module code from A7 9427 | -5/Cetus | Spotted Cetus Guard 9427 | -5/Cetus | Spotted Cetus Guard 9429 | -5/Cetus | Spotted Cetus Guard 9433 | -5/Cetus | Destroyed Cetus Guard 9433 | -5/Cetus | Spotted Cetus Guard 9437 | -5/Cetus | Destroyed Cetus Guard 9439 | -5/Cetus | Allies destroyed Cetus Guard 9441 | -5/Cetus | Destroyed Cetus Guard 9459 | -5/Cetus | System corruption reached 10% 9546 | -5/Cetus | Discovered new exit (range 20) 9581 | -5/Cetus | Spotted Cetus Guard 9582 | -5/Cetus | Build established: Scavenger-Gunner 9582 | -5/Cetus | Spotted Cetus Guard 9582 | -5/Cetus | Spotted Cetus Guard 9585 | -5/Cetus | Spotted Cetus Guard 9586 | -5/Cetus | Allies destroyed Cetus Guard 9589 | -5/Cetus | Destroyed Cetus Guard 9595 | -5/Cetus | Allies destroyed Cetus Guard 9602 | -5/Cetus | Allies destroyed Cetus Guard 9741 | -5/Cetus | Started Cetus Manufacturing Module 9766 | -5/Cetus | Manufactured an Enhanced Grunt 9791 | -5/Cetus | Manufactured an Enhanced Grunt 9816 | -5/Cetus | Manufactured an Enhanced Grunt 9841 | -5/Cetus | Manufactured an Enhanced Grunt 9843 | -5/Cetus | Cetus Manufacturing Module disabled 9881 | -5/Cetus | Allies destroyed A7 9890 | -5/Cetus | Extracted ID and sensor layout for unrecognized location from A7's data core 9897 | -5/Cetus | Found Prototype Protection 9897 | -5/Cetus | Identified Med. Regenerative Plating 9941 | -5/Cetus | Discovered exit to Factory (range 20) 9953 | -5/Cetus | Met Revision 17 10009 | -5/Cetus | Entered Archives 10009 | -5/Archives | Accompanied by 2 allies 10087 | -5/Archives | Discovered new exit (range 20) 10119 | -5/Archives | Discovered new exit (range 20) 10199 | -5/Archives | Discovered exit to Factory (range 19) 10308 | -5/Archives | Entered Hub_04(d) 10308 | -5/Hub_04(d) | Accompanied by 2 allies 10402 | -5/Hub_04(d) | Discovered exit to Factory (range 19) 10433 | -5/Hub_04(d) | Discovered exit to Factory (range 7) 10550 | -5/Hub_04(d) | Build established: Scavenger-Skirmisher 10619 | -5/Hub_04(d) | Discovered exit to Factory (range 24) 10836 | -5/Hub_04(d) | Discovered exit to Factory (range 20) 10991 | -5/Hub_04(d) | Network Hub disabled 10991 | -5/Hub_04(d) | Network Hub disabled 11124 | -5/Hub_04(d) | Spotted Lightning 11124 | -5/Hub_04(d) | Spotted Lightning 11135 | -5/Hub_04(d) | Network Hub disabled 11135 | -5/Hub_04(d) | Spotted Lightning 11135 | -5/Hub_04(d) | Spotted Lightning 11135 | -5/Hub_04(d) | Network Hub disabled 11135 | -5/Hub_04(d) | Spotted Lightning 11138 | -5/Hub_04(d) | Entered Factory 11138 | -4/Factory | Evolved 2 slots: Utility x2 11312 | -4/Factory | Identified exit to Upper Caves 11312 | -4/Factory | Identified exit to Armory 11517 | -4/Factory | Spotted B-86 Titan 11629 | -4/Factory | Destroyed 9 combat bots 11888 | -4/Factory | First assault squad dispatched 12095 | -4/Factory | Fabricated Biometal Heavy Treads (x1) 12269 | -4/Factory | Lost 3 parts (1p1n1w) 12313 | -4/Factory | Entered Armory 12474 | -4/Armory | Fabricated H-66 Slayer? 12595 | -4/Armory | Search patrols dispatched 12669 | -4/Armory | Discovered new exit (range 18) 12684 | -4/Armory | Fabricated Y-64 Sentinel? 12758 | -4/Armory | Lost 4 allies 12812 | -4/Armory | Fabricated Adv. Transmission Jammer? 13611 | -4/Armory | Build established: Hacker-Gunner 13813 | -4/Armory | First assault squad dispatched 13885 | -4/Armory | Core integrity fell below 50% 13992 | -4/Armory | Lost 12 parts (1p3n3u5w) 14006 | -4/Armory | Found Prototype Slashing Weapon 14006 | -4/Armory | Identified Vibroblade 14150 | -4/Armory | Discovered new exit (range 22) 14191 | -4/Armory | Discovered new exit (range 17) 14215 | -4/Armory | Entered Lab 14215 | -4/Lab | Discovered new exit (range 9) 14232 | -4/Lab | Hidden lab's door opened automatically 14232 | -4/Lab | Sensor layout match revealed 14233 | -4/Lab | Gained access to the hidden lab's interior 14250 | -4/Lab | Unable to decrypt terminal 14269 | -4/Lab | Found Alien Artifact 14269 | -4/Lab | Identified Integrated Reactor 14269 | -4/Lab | Installed Integrated Reactor, increased core energy generation (+10) 14279 | -4/Lab | Found Alien Artifact 14279 | -4/Lab | Identified Core Expander 14279 | -4/Lab | Installed Core Expander, added new Power slot 14318 | -4/Lab | Unable to decrypt terminal 14378 | -4/Lab | Found Prototype Hackware 14378 | -4/Lab | Identified Deep Network Scanner 14385 | -4/Lab | Found Prototype Energy Cannon 14385 | -4/Lab | Identified Potential Cannon 14759 | -4/Lab | Build established: Hacker-Mutant 15054 | -4/Lab | Entered Research 15054 | -3/Research | Evolved 2 slots: Utility x2 15057 | -3/Research | Loaded intel: 23 terminal locations 15078 | -3/Research | Build established: Hacker-Golem 15227 | -3/Research | Found Prototype Processor 15227 | -3/Research | Identified Exp. Melee Analysis Suite 15531 | -3/Research | Identified exit to Quarantine 15534 | -3/Research | Found Gamma Bomb Array 15588 | -3/Research | Found Prototype Launcher 15589 | -3/Research | Identified Tesla Bomb Launcher 15844 | -3/Research | Identified exit to Research 15867 | -3/Research | Spotted B-86 Titan 15915 | -3/Research | Entered another Research area 15915 | -2/Research | Evolved 2 slots: Utility x2 15974 | -2/Research | Discovered new exit (range 22) 16100 | -2/Research | Identified exit to Testing 16218 | -2/Research | Entered Access 16218 | -1/Access | Evolved 2 slots: Utility x2 16255 | -1/Access | Identified exit to Surface 16347 | -1/Access | Spotted B-99 Colossus 16714 | -1/Access | Energy Cycler disabled 16812 | *** | Escaped! Last Messages --------------- >>Trojan(Track) Trojan loaded successfully. Testing... Tracking enabled and active. >>Prototypes Downloading prototype IDs... Graviton Cannon Exp. Q-thruster Exp. Core Analyzer Hdn. Centrium Leg 16661_ ALERT: Suspicious intruders detected, dispatching Specialist reinforcements to area. 16671_ KLKT&WFABSN2B>Alert(Purge) Purged threat record, alert level lowered. 16807_ The Access Shell folds into the floor. Map ----- +----------------------------------------------------+ | # "###????????##### ######### ????????? | | # " ##???????????## ##????????????????? | | # " ##???????????## ##????????????????? | | # "###???????????## ##????????????????? | | # "###??????####### ########??????????? | | + ###???????#######+########??????????? | | + ###???????## ##??????????? | | # ##????????## ##??????????? | | # ##????????## " ##??????????? | | ###"###########????????## """" ##??o???????? | | ########????????## """"" ### ???? | | ##??????????????## """"" #########???? | | ##??????????????## """" + ???? | | ##??????????????## " # ???????? | | ### ##??????????????## # ##???????? | | ### ##??????????????## + ##???????? | | ?## ##??????????????## """ """ # ##???????? | | ?## ##??????????????## """T""" # ##???????? | | ?## ##??????????????############### ##???????? | | ?## ##??????????################### ##???????? | | ?## ##??????????########### #######k ##???????? | | ?## ##??????????"" ##???????? | | ?## ##?????BB????" ##???????? | | ?## ##?????BB????" ##???????? | | ?## ???????????" ##???????? | | ?## ????????????" "@ ##???????? | | ?## ????????????" "" ##???????? | | ?## ??????????" ##???????? | | ?#########????BB????" ##???????? | | ?#########????BB????" """ """ ##???????? | | ???????????????????"" """T""" ##???????? | | ???????????????????########### ####### ##???????? | | ???????????????????################### ##???????? | | ????????????????????????????#####????? ##???????? | | ?????????????????????????????????????? ##???????? | | ?????????????????????????????????????? ##???????? | | ?????????????????????????????????????? ##???????? | | ?????????????????????????????????????? # ???????? | | ?????????????????????????????????????? # ???????? | | ?????????????????????????????????????? # ???????? | | ?????????????????????????????????????? # ???????? | | ?????????????????????????????????????? # ???????? | | ??????????????????????????????????????? ?????????? | | ?????????????????????????????????????????????????? | | ?????????????????????????????????????????????????? | | ?????????????????????????????????????????????????? | | ?????????????????????????????????????????????????? | | ?????????????????????????????????????????????????? | | ?????????????????????????????????????????????????? | | ?????????????????????????????????????????????????? | +----------------------------------------------------+ Best States ------------- Heat Dissipation 112 Energy Generation 55 Energy Capacity 2100 Matter Stores 670 Matter Capacity 700 Sight Range 22 Robot Scan Range 15 Terrain Scan Range 24 Terrain Scan Density 210 Jamming Range 16 Additional Mass Support 20 Corruption Block 20 Armor Coverage 1200 Resistance: KI 15 Resistance: TH 20 Resistance: EX 15 Resistance: EM 20 Resistance: I 15 Resistance: S 15 Resistance: P 15 Utility Shielding 66 Weapon Shielding 100 Weapon Cycling 30 Phase Shifting 8 Evasion (%) 63 Targeting Accuracy 16 Core Analysis 8 Armor Integrity Analysis 40 Recoil Reduction 4 Energy Filtering 50 Offensive Hacking 39 Defensive Hacking 10 Authchip Count 2 Item Schematics ----------------- Combat Drone Bay | -7/Data Miner | Free Lgt. Regenerative Plating | -7/Data Miner | Free Cld. Cesium-ion Thruster | -7/Data Miner | Free Gravity Neutralizer | -7/Data Miner | Free Force Rifle | -7/Data Miner | Free Cmb. Gravmag System | -7/Data Miner | Free Adv. Hacking Suite | -7/Data Miner | Free Variable Charge Gun | -7/Data Miner | Free Wave Gun | -7/Data Miner | Free Biometal Heavy Treads | -4/Factory | Hacked Adv. Transmission Jammer | -4/Armory | Hacked Robot Schematics ------------------ S-27 Virus | -7/Data Miner | Free M-28 Smith | -7/Data Miner | Free H-66 Slayer | -7/Data Miner | Free R-10 Processor | -7/Data Miner | Free G-50 Soldier | -7/Data Miner | Free A-15 Conveyor | -7/Data Miner | Free Fabricated ------------ Biometal Heavy Treads | x1 | -4/Factory | Preloaded H-66 Slayer | x2 | -4/Armory | Authchip Y-64 Sentinel | x2 | -4/Armory | Preloaded Adv. Transmission Jammer | x1 | -4/Armory | Authchip Alien Tech Used ----------------- Integrated Reactor Core Expander Achievements -------------- None Challenges ------------ None Game ------ Seed ShrapnelSapperWings Manual? 0 Play Time 03:39:39 Cumulative 1072.3 hours Start 2024.03.17 @ 12:07:18 End 2024.03.17 @ 17:41:05 Sessions 7 Manual Loads 0 Difficulty Rogue Special Mode None Game No. 536 Rogue 409 Adventurer 125 Explorer 2 Win Type 0 Total 129 Types 100/10/9/3/3/0/0/2/2 Lore% 82 Gallery% 90 Achievement% 84 Wizard Run 0 Options --------- Layout 0 ASCII 0 Keyboard 1 Movement Numpad Keybinds 0 Fullscreen 1 Font 36/Terminus++ Map View 76x50 Zoom Use 0% Tactical HUD 1 Map Filters NONE Filters NONE Steam 1 RUN: 167619cd-b3e2-4c48-a430-4010a9c543af